bitfinex/quotes_SOLUSD_20240824
["timestamp","ask_amount","ask_price","bid_price","bid_amount"]
[1724502083564,17.26717027,158.12,158.06,7.91777135]
[1724502083768,15.6856,158.12,158.07,7.91777135]
[1724502083986,15.6856,158.12,158.08,7.91777135]
[1724502084286,15.6856,158.12,158.06,9.81003519]
[1724502084586,15.6856,158.12,158.07,7.91673449]
[1724502084787,15.6856,158.12,158.08,7.91673449]
[1724502084988,15.6856,158.12,158.09,7.91673449]
[1724502085183,15.6856,158.12,158.07,7.91673449]
[1724502085369,15.6856,158.12,158.08,7.91673449]
[1724502085570,15.6856,158.12,158.09,7.91673449]
[1724502085782,15.6856,158.12,158.06,9.81003519]
[1724502085971,15.6856,158.12,158.07,7.91660911]
[1724502086172,15.6856,158.12,158.08,7.91660911]
[1724502086374,15.6856,158.12,158.09,7.91660911]
[1724502086585,15.6856,158.12,158.1,7.91660911]
[1724502086793,15.6856,158.12,158.06,9.81003519]
[1724502087290,15.6856,158.12,158.07,7.91661751]
[1724502087583,17.2668806,158.12,158.08,7.91661751]
[1724502087766,17.2668806,158.12,158.09,7.91661751]
[1724502088060,17.2668806,158.12,158.06,9.81003519]
[1724502088265,17.2668806,158.12,158.07,7.91657554]
[1724502088491,17.2668806,158.12,158.08,7.91657554]
[1724502088665,17.2668806,158.12,158.09,7.91657554]
[1724502088990,17.2668806,158.12,158.06,9.81003519]
[1724502089176,17.2668806,158.12,158.07,7.9166091]
[1724502089485,17.2668806,158.12,158.08,7.9166091]
[1724502089687,15.6856,158.12,158.09,7.9166091]
[1724502089885,15.6856,158.12,158.1,7.9166091]
[1724502090187,15.6856,158.12,158.08,9.81003519]
[1724502090387,15.6856,158.12,158.09,7.91635423]
[1724502090584,15.6856,158.12,158.1,7.91635423]
[1724502090887,15.6856,158.12,158.08,9.81003519]
[1724502091090,15.6856,158.12,158.09,7.91628917]
[1724502091290,15.6856,158.12,158.1,7.91628917]
[1724502091477,15.6856,158.12,158.08,9.81003519]
[1724502091789,15.6856,158.12,158.09,7.91629113]
[1724502092090,15.6856,158.12,158.1,7.91629113]
[1724502092390,15.6856,158.12,158.08,9.81003519]
[1724502092682,15.6856,158.12,158.09,7.9163331]
[1724502092884,15.6856,158.12,158.1,7.9163331]
[1724502093088,15.6856,158.12,158.09,1.26491039]
[1724502093290,15.6856,158.12,158.1,7.916171]
[1724502093491,15.6856,158.12,158.09,1.26491039]
[1724502093662,15.6856,158.12,158.1,7.91617003]
[1724502093869,15.6856,158.12,158.08,9.81003519]
[1724502094076,6.0508,158.13,158.09,8.04166003]
[1724502094381,6.0508,158.13,158.1,7.91617003]
[1724502094609,6.0508,158.13,158.11,7.91617003]
[1724502094771,6.0508,158.13,158.09,0.25098]
[1724502094977,6.0508,158.13,158.1,7.91562094]
[1724502095277,6.0508,158.13,158.09,45.25098]
[1724502095278,6.0508,158.13,158.11,7.91562094]
[1724502095479,6.0508,158.13,158.09,45.25098]
[1724502095689,6.0508,158.13,158.1,7.91553315]
[1724502095902,6.0508,158.13,158.11,7.91553315]
[1724502096077,6.0508,158.13,158.09,45.25098]
[1724502096275,6.0508,158.13,158.1,7.91547163]
[1724502096475,6.0508,158.13,158.11,7.91547163]
[1724502096679,6.0508,158.13,158.12,7.91547163]
[1724502097393,15.4827,158.16,158.1,7.91547163]
[1724502097571,15.4827,158.16,158.11,7.91547163]
[1724502097766,15.4827,158.16,158.12,7.91547163]
[1724502097993,15.4827,158.16,158.11,7.91547163]
[1724502098183,15.4827,158.16,158.12,7.91547163]
[1724502098383,15.4827,158.16,158.11,7.91547163]
[1724502098594,15.4827,158.16,158.12,7.91547163]
[1724502098789,15.4827,158.16,158.11,7.91547163]
[1724502098983,15.4827,158.16,158.1,9.81003519]
[1724502098984,15.4827,158.16,158.12,7.91547163]
[1724502099188,15.904,158.2,158.14,9.81003519]
[1724502099388,15.904,158.2,158.16,9.81003519]
[1724502099576,6.383,158.22,158.18,9.81003519]
[1724502101298,15.904,158.24,158.18,9.81003519]
[1724502107999,6.383,158.26,158.2,9.81003519]
[1724502110601,1.5798763,158.25,158.2,9.81003519]
[1724502110994,1.5798763,158.25,158.19,0.12549]
[1724502111395,1.5798763,158.25,158.19,45.25098]
[1724502116508,1.5798763,158.25,158.18,9.81003519]
[1724502117795,1.5798763,158.25,158.2,9.81003519]
[1724502118395,1.57998238,158.27,158.2,9.81003519]
[1724502130007,1.57998238,158.27,158.19,45.25098]
[1724502130210,1.57998238,158.27,158.2,45.0]
[1724502132237,1.57998238,158.27,158.2,54.81003519]
[1724502140636,1.57998238,158.27,158.2,45.0]
[1724502140816,1.57998238,158.27,158.2,54.81003519]
[1724502143328,1.57998238,158.27,158.21,7.91008864]
[1724502144339,1.57998238,158.27,158.22,7.91008864]
[1724502144556,1.57998238,158.27,158.21,7.91008864]
[1724502144722,1.57998238,158.27,158.22,7.91008864]
[1724502145037,1.57998238,158.27,158.2,54.81003519]
[1724502145342,1.57998238,158.27,158.21,7.91025253]
[1724502145516,1.57998238,158.27,158.22,7.91025253]
[1724502145718,1.57998238,158.27,158.2,54.81003519]
[1724502145921,1.57998238,158.27,158.21,7.91012693]
[1724502146231,1.57998238,158.27,158.2,54.81003519]
[1724502146232,1.57998238,158.27,158.22,7.91012693]
[1724502146432,1.57998238,158.27,158.2,54.81003519]
[1724502146636,1.57998238,158.27,158.21,7.91046768]
[1724502146829,1.57998238,158.27,158.2,54.81003519]
[1724502150026,1.57998238,158.27,158.2,45.0]
[1724502150229,1.57998238,158.27,158.2,54.81003519]
[1724502152137,1.57998238,158.27,158.2,45.0]
[1724502152439,9.81003519,158.26,158.17,20.0]
[1724502152747,7.74315836,158.25,158.16,15.4903]
[1724502153220,7.74315836,158.25,158.13,6.60959813]
[1724502153417,9.81003519,158.24,158.15,9.81003519]
[1724502153638,1.58032885,158.23,158.13,6.60959813]
[1724502153837,1.58032885,158.23,158.14,9.81003519]
[1724502154343,17.94632885,158.23,158.14,9.81003519]
[1724502155841,17.94632885,158.23,158.15,45.0]
[1724502165461,9.81003519,158.22,158.14,9.81003519]
[1724502165754,1.58062045,158.21,158.13,6.60959813]
[1724502165929,1.58070316,158.2,158.12,9.81003519]
[1724502167055,1.58074489,158.21,158.12,9.81003519]
[1724502168451,6.2279,158.19,158.1,9.81003519]
[1724502168652,1.58083279,158.18,158.11,20.0]
[1724502172143,1.58083279,158.18,158.12,9.81003519]
[1724502172457,7.80870305,158.19,158.12,54.81003519]
[1724502173254,6.2279,158.19,158.12,54.81003519]
[1724502177278,1.58071024,158.18,158.12,45.0]
[1724502177569,16.59561024,158.18,158.12,45.0]
[1724502180773,16.59561024,158.18,158.12,54.81003519]
[1724502189404,15.0149,158.18,158.14,9.81003519]
[1724502189972,16.5954585,158.18,158.12,54.81003519]
[1724502190304,15.0149,158.18,158.12,54.81003519]
[1724502195580,16.59549459,158.18,158.12,54.81003519]
[1724502198309,15.0149,158.18,158.12,54.81003519]
[1724502199209,15.0149,158.18,158.14,9.81003519]
[1724502200984,15.4633,158.22,158.16,9.81003519]
[1724502204633,15.4633,158.22,158.18,9.81003519]
[1724502206801,15.4633,158.22,158.19,7.91173661]
[1724502208233,15.4633,158.22,158.18,9.81003519]
[1724502216541,15.4633,158.22,158.16,9.81003519]
[1724502216717,17.04358338,158.22,158.16,9.81003519]
[1724502217124,26.85361857,158.22,158.13,9.81003519]
[1724502217427,26.85361857,158.22,158.14,20.0]
[1724502217626,26.85361857,158.22,158.11,6.60944419]
[1724502217946,6.3672,158.19,158.11,9.81003519]
[1724502218111,1.58081077,158.18,158.11,9.81003519]
[1724502219302,1.58081077,158.18,158.12,20.0]
[1724502220238,6.3672,158.19,158.13,11.07468289]
[1724502220431,6.3672,158.19,158.13,9.81003519]
[1724502220745,15.1913,158.18,158.12,20.0]
[1724502221036,1.58085198,158.17,158.12,20.0]
[1724502223012,1.58085198,158.17,158.08,9.84073632]
[1724502223244,1.58085198,158.17,158.09,20.0]
[1724502223414,11.39088717,158.17,158.09,20.0]
[1724502224318,11.39088717,158.17,158.08,9.81003519]
[1724502227830,1.58085198,158.17,158.08,9.81003519]
[1724502228025,11.39088717,158.17,158.08,9.81003519]
[1724502229145,1.58085198,158.17,158.08,9.81003519]
[1724502229356,11.39088717,158.17,158.08,9.81003519]
[1724502231658,11.39088717,158.17,158.08,9.81003519]
[1724502236753,16.0165,158.15,158.05,6.61301942]
[1724502236931,1.58114635,158.14,158.07,9.81003519]
[1724502237133,1.58114635,158.14,158.08,20.0]
[1724502246455,1.58114635,158.14,158.06,45.25098]
[1724502246456,1.58114635,158.14,158.07,20.0]
[1724502249961,1.58114635,158.14,158.06,29.81003519]
[1724502258045,11.39118154,158.14,158.06,20.0]
[1724502258375,24.89433519,158.12,158.02,9.81003519]
[1724502258677,1.5816115,158.11,158.02,9.81003519]
[1724502258968,1.58161111,158.1,158.02,9.81003519]
[1724502259543,1.58161111,158.1,158.03,20.0]
[1724502267187,1.5815988,158.11,158.03,20.0]
[1724502267390,16.66579579,158.12,158.04,55.06101519]
[1724502267597,15.0843,158.12,158.04,55.06101519]
[1724502267759,1.58139084,158.11,158.04,9.81003519]
[1724502268096,1.58155,158.1,158.04,9.81003519]
[1724502268881,1.58155009,158.11,158.04,9.81003519]
[1724502269177,1.5815483,158.1,158.04,9.81003519]
[1724502269389,1.58154815,158.11,158.04,9.81003519]
[1724502269983,1.5815497,158.1,158.04,9.81003519]
[1724502270191,1.5815497,158.1,158.03,29.81003519]
[1724502275191,6.5186,158.09,158.03,20.0]
[1724502275379,1.581639,158.08,158.03,9.81003519]
[1724502275578,1.581639,158.08,158.01,20.0]
[1724502275896,15.2409,158.07,158.01,20.0]
[1724502277973,16.82284168,158.07,158.01,20.0]
[1724502280184,15.2409,158.07,158.01,20.0]
[1724502285397,16.82272587,158.07,158.01,20.0]
[1724502285695,16.82272587,158.07,158.0,20.8775091]
[1724502286197,15.5336,158.05,158.0,0.8775091]
[1724502286497,1.58235472,158.04,158.0,0.8775091]
[1724502287698,11.39238991,158.04,158.0,0.8775091]
[1724502288688,1.58235472,158.04,158.0,0.8775091]
[1724502308525,9.81003519,158.02,158.0,0.8775091]
[1724502308707,46.58287577,158.01,158.0,0.8775091]
[1724502308903,63.16295577,158.01,158.0,0.8775091]
[1724502309104,63.16295577,158.01,157.89,9.81003519]
[1724502309424,16.3291,157.97,157.87,9.81003519]
[1724502309607,1.58322707,157.96,157.87,9.81003519]
[1724502309798,1.58322718,157.95,157.87,9.81003519]
[1724502310627,1.58322718,157.95,157.88,20.0]
[1724502311318,1.58322718,157.95,157.89,9.81003519]
[1724502311500,1.58322718,157.95,157.9,20.0]
[1724502312902,1.58314319,157.96,157.89,9.81003519]
[1724502313102,1.58314319,157.96,157.9,20.0]
[1724502313505,7.78953519,157.95,157.9,20.0]
[1724502313808,7.78953519,157.95,157.89,20.0]
[1724502314225,7.78953519,157.95,157.88,9.81003519]
[1724502314407,7.78953519,157.95,157.89,20.0]
[1724502317013,6.2065,157.95,157.89,20.0]
[1724502317335,1.58315061,157.94,157.89,29.81003519]
[1724502317927,7.78964144,157.95,157.89,20.0]
[1724502318225,7.78964144,157.95,157.89,17.1595228]
[1724502318428,7.78964144,157.95,157.9,20.0]
[1724502319112,6.2065,157.95,157.9,20.0]
[1724502319319,7.78950288,157.95,157.9,20.0]
[1724502320320,1.58300156,157.94,157.9,20.0]
[1724502321038,1.58300156,157.94,157.88,9.81003519]
[1724502321610,6.2065,157.95,157.88,9.81003519]
[1724502321814,7.78967324,157.95,157.88,9.81003519]
[1724502322008,7.78967324,157.95,157.86,5.82685312]
[1724502322217,7.78967324,157.95,157.87,74.81003519]
[1724502323636,17.59970843,157.95,157.87,20.0]
[1724502324138,16.3291,157.94,157.86,9.81003519]
[1724502324323,16.3291,157.94,157.84,0.8458091]
[1724502324324,1.58339711,157.93,157.84,0.8458091]
[1724502324525,1.58355292,157.92,157.84,10.65584429]
[1724502325034,1.58355292,157.92,157.84,0.8458091]
[1724502326027,1.58355292,157.92,157.84,20.8458091]
[1724502326241,1.58355292,157.92,157.84,0.8458091]
[1724502326549,1.58355292,157.92,157.84,20.8458091]
[1724502327925,1.58355292,157.92,157.85,9.81003519]
[1724502329657,1.58355292,157.92,157.87,9.81003519]
[1724502330626,1.58342385,157.93,157.87,9.81003519]
[1724502330944,1.58342385,157.93,157.89,9.81003519]
[1724502332932,16.3291,157.94,157.91,9.81003519]
[1724502333128,6.2065,157.95,157.91,9.81003519]
[1724502334243,1.58303894,157.97,157.91,9.81003519]
[1724502340547,17.51922165,157.98,157.93,9.81003519]
[1724502344533,15.9364,157.98,157.93,9.81003519]
[1724502344730,17.51912578,157.98,157.93,9.81003519]
[1724502345434,17.51912651,157.98,157.93,9.81003519]
[1724502347959,6.0031,157.99,157.95,9.81003519]
[1724502348654,16.0449,158.02,157.97,9.81003519]
[1724502365080,1.58228286,158.01,157.91,16.0693]
[1724502365374,1.58228286,158.01,157.94,9.81003519]
[1724502365577,1.58228286,158.01,157.95,20.0]
[1724502366271,16.0449,158.02,157.98,9.81003519]
[1724502366656,6.1147,158.04,157.98,9.81003519]
[1724502366858,6.1147,158.04,157.99,1.26573548]
[1724502367557,6.1147,158.04,157.98,9.81003519]
[1724502367759,7.69690887,158.04,157.98,9.81003519]
[1724502368892,6.1147,158.04,157.98,9.81003519]
[1724502370291,7.69683188,158.04,157.98,9.81003519]
[1724502371271,1.58215744,158.03,157.98,9.81003519]
[1724502371987,6.1147,158.04,157.98,9.81003519]
[1724502373997,6.1147,158.04,158.0,9.81003519]
[1724502376290,6.1147,158.04,157.98,9.81003519]
[1724502376475,6.1147,158.04,157.99,45.0]
[1724502379663,6.1147,158.04,158.0,9.81003519]
[1724502380464,1.58195167,158.05,158.0,9.81003519]
[1724502380465,15.9285,158.06,158.0,9.81003519]
[1724502384413,1.58196291,158.05,158.0,9.81003519]
[1724502388584,1.58196291,158.05,158.01,7.91942641]
[1724502388785,1.58196291,158.05,158.02,7.91942641]
[1724502388985,1.58196291,158.05,158.01,7.91942641]
[1724502389185,1.58196291,158.05,158.0,9.81003519]
[1724502391190,1.58196291,158.05,157.98,9.81003519]
[1724502391396,1.58210526,158.04,157.99,20.0]
[1724502391601,1.58210526,158.04,157.92,23.13114312]
[1724502391602,6.3059,158.03,157.92,23.13114312]
[1724502391799,1.58231276,158.02,157.95,9.81003519]
[1724502392907,1.58231276,158.02,157.96,45.0]
[1724502393102,1.58231276,158.02,157.97,20.0]
[1724502393307,1.58231276,158.02,157.92,23.13114312]
[1724502393308,16.5451,158.01,157.92,23.13114312]
[1724502393501,16.5451,158.01,157.93,0.12549]
[1724502393809,18.12754272,158.01,157.94,9.81003519]
[1724502394033,18.12754272,158.01,157.95,20.0]
[1724502394687,16.5451,158.01,157.95,20.0]
[1724502395113,16.5451,158.01,157.96,9.81003519]
[1724502404592,16.47817685,158.01,157.96,9.81003519]
[1724502416028,1.58236773,158.0,157.96,9.81003519]
[1724502420136,18.0606834,158.01,157.96,9.81003519]
[1724502420338,16.47817685,158.01,157.96,9.81003519]
[1724502433831,16.47817685,158.01,157.97,20.0]
[1724502443559,16.47817685,158.01,157.98,9.81003519]
[1724502443779,16.47817685,158.01,157.97,20.0]
[1724502443950,16.47817685,158.01,157.95,9.93552519]
[1724502444151,16.47817685,158.01,157.96,65.12549]
[1724502445277,16.47817685,158.01,157.97,9.81003519]
[1724502445578,16.47817685,158.01,157.98,20.0]
[1724502445875,16.47817685,158.01,157.96,74.93552519]
[1724502446861,16.47817685,158.01,157.98,9.81003519]
[1724502449174,16.47817685,158.01,157.99,7.92052734]
[1724502449377,16.47817685,158.01,158.0,7.92052734]
[1724502450976,16.47817685,158.01,158.0,7.92048337]
[1724502454872,6.3059,158.03,158.0,7.92048337]
[1724502455068,6.3059,158.03,157.98,9.81003519]
[1724502458407,15.1486,158.05,158.0,9.81003519]
[1724502458696,15.1486,158.05,158.01,1.2655473]
[1724502458913,15.1486,158.05,158.0,9.81003519]
[1724502462788,6.5749,158.08,158.02,9.81003519]
[1724502464296,6.5749,158.08,158.03,20.0]
[1724502465273,22.4735,158.14,158.06,9.81003519]
[1724502465466,22.4735,158.14,158.08,9.81003519]
[1724502465782,22.4735,158.14,158.07,9.81003519]
[1724502465976,22.4735,158.14,158.08,1.2650067]
[1724502466370,22.4735,158.14,158.07,9.81003519]
[1724502466773,22.4735,158.14,158.03,23.19770063]
[1724502466978,24.05476297,158.14,158.06,9.81003519]
[1724502467176,9.81003519,158.11,158.03,20.0]
[1724502467401,9.81003519,158.11,158.02,9.81003519]
[1724502467402,1.58158905,158.1,158.02,9.81003519]
[1724502467694,1.58158905,158.1,158.03,20.0]
[1724502469071,1.58164882,158.12,158.03,20.0]
[1724502471190,1.58164739,158.11,158.05,9.81003519]
[1724502471401,1.5814293,158.13,158.05,9.81003519]
[1724502472706,1.5814293,158.13,158.03,29.81003519]
[1724502473713,9.81003519,158.12,158.03,29.81003519]
[1724502474586,1.58153736,158.11,158.03,29.81003519]
[1724502475589,15.4893,158.18,158.04,30.42555462]
[1724502475906,15.4893,158.18,158.1,9.81003519]
[1724502476215,17.07028649,158.18,158.11,65.0]
[1724502476501,1.58069845,158.17,158.11,20.0]
[1724502476698,1.58069845,158.17,158.11,29.81003519]
[1724502478584,15.4893,158.22,158.13,9.81003519]
[1724502478788,15.4893,158.22,158.17,9.81003519]
[1724502478978,15.4893,158.22,158.18,1.26422645]
[1724502479806,15.4893,158.22,158.17,9.81003519]
[1724502480593,17.06958439,158.22,158.15,9.81003519]
[1724502480797,17.06958439,158.22,158.16,20.0]
[1724502481118,26.87961958,158.22,158.1,15.1236]
[1724502481414,26.87961958,158.22,158.11,55.06101519]
[1724502482681,26.87961958,158.22,158.12,20.0]
[1724502484003,1.58065484,158.28,158.16,15.1236]
[1724502484200,1.58065484,158.28,158.19,9.81003519]
[1724502484392,1.58065484,158.28,158.2,20.0]
[1724502485407,31.43073519,158.3,158.21,1.26397756]
[1724502485613,1.57977513,158.29,158.2,20.0]
[1724502485797,1.57977513,158.29,158.18,29.81003519]
[1724502485989,11.38981032,158.29,158.18,29.81003519]
[1724502486188,11.38981032,158.29,158.2,9.81003519]
[1724502486505,21.6207,158.3,158.21,21.26394992]
[1724502487310,1.57981035,158.29,158.21,20.0]
[1724502487999,1.57981035,158.29,158.19,0.12549]
[1724502488000,1.57981035,158.29,158.19,29.93552519]
[1724502488193,1.57981035,158.29,158.2,45.25098]
[1724502488400,21.6207,158.3,158.21,21.26379218]
[1724502488706,1.57974268,158.29,158.21,20.0]
[1724502488913,21.6207,158.3,158.22,1.26379414]
[1724502489124,1.5797426,158.29,158.21,29.81003519]
[1724502490014,21.6207,158.3,158.21,29.81003519]
[1724502490224,21.6207,158.3,158.22,1.26375991]
[1724502490403,21.6207,158.3,158.23,9.81003519]
[1724502490603,6.1314,158.3,158.25,9.81003519]
[1724502490812,1.57958059,158.33,158.25,9.81003519]
[1724502491200,23.61116248,158.34,158.25,9.81003519]
[1724502492239,9.81003519,158.33,158.24,0.12549]
[1724502492398,9.81003519,158.31,158.22,9.81003519]
[1724502492725,9.81003519,158.31,158.21,20.0]
[1724502492726,1.57961734,158.3,158.23,20.0]
[1724502492903,1.57965532,158.29,158.23,20.0]
[1724502493103,1.57965532,158.29,158.18,3.07443603]
[1724502493104,11.38969051,158.29,158.16,15.1236]
[1724502493304,11.38969051,158.29,158.18,9.81003519]
[1724502493305,25.55853519,158.27,158.18,9.81003519]
[1724502493521,1.57997653,158.26,158.18,9.81003519]
[1724502493727,1.57995298,158.26,158.18,9.81003519]
[1724502493906,27.13848806,158.27,158.18,9.81003519]
[1724502494301,1.57996873,158.26,158.18,9.81003519]
[1724502494502,27.13849321,158.27,158.18,9.81003519]
[1724502494726,1.57995458,158.26,158.19,20.0]
[1724502495822,1.57995458,158.26,158.17,29.93552519]
[1724502496021,1.57995458,158.26,158.17,29.81003519]
[1724502497904,9.81003519,158.25,158.17,20.0]
[1724502498242,1.5801717,158.24,158.16,20.12549]
[1724502499032,1.58016237,158.26,158.17,9.81003519]
[1724502499323,1.58016237,158.26,158.18,20.0]
[1724502501924,9.81003519,158.25,158.18,20.0]
[1724502502114,1.58019888,158.24,158.17,20.0]
[1724502502310,1.58019888,158.24,158.16,20.12549]
[1724502502516,9.81003519,158.25,158.16,20.12549]
[1724502502915,9.81003519,158.25,158.17,1.26416845]
[1724502504209,15.7485,158.27,158.17,11.07420364]
[1724502504513,25.55853519,158.27,158.18,20.0]
[1724502504708,25.55853519,158.27,158.19,1.26413563]
[1724502505135,1.58019105,158.26,158.18,20.0]
[1724502505531,9.81003519,158.25,158.18,20.0]
[1724502505834,1.58019266,158.24,158.16,20.12549]
[1724502506836,11.39022876,158.23,158.16,20.0]
[1724502507017,6.0653,158.22,158.14,20.0]
[1724502507339,1.58038557,158.21,158.14,20.0]
[1724502507913,7.64572641,158.22,158.14,20.0]
[1724502508114,6.0653,158.22,158.14,20.0]
[1724502508337,7.64571235,158.22,158.14,20.0]
[1724502511936,6.0653,158.22,158.14,20.0]
[1724502514149,17.41851219,158.21,158.13,0.12549]
[1724502514360,17.41851219,158.21,158.12,0.25098]
[1724502514646,17.41851219,158.21,158.09,15.4742905]
[1724502514647,9.81003519,158.2,158.09,15.4742905]
[1724502514838,1.58075243,158.19,158.09,16.41912915]
[1724502515033,1.58075243,158.19,158.09,9.81003519]
[1724502515542,1.58075243,158.19,158.08,268.8892]
[1724502515543,6.0653,158.17,158.08,9.81003519]
[1724502515726,1.58090909,158.16,158.08,9.81003519]
[1724502516254,6.0653,158.17,158.1,9.81003519]
[1724502516465,6.0653,158.17,158.11,20.0]
[1724502517152,6.0653,158.17,158.12,1.26467978]
[1724502517523,6.0653,158.17,158.12,9.81003519]
[1724502518343,6.0653,158.17,158.13,20.0]
[1724502519337,6.0653,158.17,158.14,1.26451883]
[1724502519724,6.0653,158.17,158.13,20.0]
[1724502521037,6.0653,158.17,158.12,9.81003519]
[1724502521240,6.0653,158.17,158.13,20.0]
[1724502522859,6.0653,158.17,158.11,20.0]
[1724502523151,6.0653,158.17,158.12,7.91330448]
[1724502523328,6.0653,158.17,158.13,20.0]
[1724502523949,6.0653,158.17,158.11,20.0]
[1724502524149,6.0653,158.17,158.12,7.91322071]
[1724502524453,6.0653,158.17,158.13,20.0]
[1724502524954,6.0653,158.17,158.11,20.0]
[1724502525257,6.0653,158.17,158.12,7.91321876]
[1724502525463,6.0653,158.17,158.13,20.0]
[1724502526131,6.0653,158.17,158.11,20.0]
[1724502526328,6.0653,158.17,158.12,7.91317883]
[1724502526558,6.0653,158.17,158.13,20.0]
[1724502527158,1.58065176,158.16,158.11,20.0]
[1724502527362,1.58065176,158.16,158.08,29.81003519]
[1724502527545,1.58065176,158.16,158.09,7.91458804]
[1724502527743,15.0906,158.15,158.1,20.0]
[1724502528074,1.58093317,158.14,158.06,9.81003519]
[1724502528247,1.58093317,158.14,158.07,7.91548769]
[1724502528437,11.39096836,158.14,158.04,24.89923519]
[1724502528638,11.39096836,158.14,158.05,7.91618546]
[1724502528970,9.81003519,158.12,158.05,7.91618546]
[1724502529136,1.58146362,158.11,158.02,9.81003519]
[1724502529335,1.58146362,158.11,158.02,17.72731135]
[1724502530149,1.58146362,158.11,158.02,9.81003519]
[1724502530359,1.58146362,158.11,158.02,17.72797656]
[1724502530668,1.58146362,158.11,158.03,20.0]
[1724502530863,1.58148554,158.12,158.03,20.0]
[1724502531041,1.58148554,158.12,158.02,20.0]
[1724502531739,1.58148554,158.12,158.03,45.25098]
[1724502532032,1.58148554,158.12,158.04,20.0]
[1724502535843,15.0906,158.11,158.04,20.0]
[1724502536041,1.5814824,158.1,158.04,20.0]
[1724502537671,1.5814824,158.1,157.99,26.483752]
[1724502537672,31.02279788,158.09,158.0,20.0]
[1724502537855,1.58174578,158.08,158.0,20.0]
[1724502538851,1.58174578,158.08,158.01,45.12549]
[1724502539060,1.58174578,158.08,158.02,20.0]
[1724502539260,15.0906,158.07,158.0,20.0]
[1724502539453,1.58192626,158.06,158.0,20.0]
[1724502540455,1.58192626,158.06,157.97,20.0]
[1724502540656,1.58192626,158.06,157.98,45.25098]
[1724502540871,1.58192626,158.06,157.99,20.0]
[1724502543882,1.58192626,158.06,157.98,0.12549]
[1724502543883,15.0906,158.04,157.98,0.12549]
[1724502544175,15.0906,158.04,157.94,8.28854826]
[1724502544176,1.58210258,158.03,157.94,8.28854826]
[1724502545256,1.58210258,158.03,157.92,6.61767852]
[1724502545257,1.58210258,158.03,157.95,20.0]
[1724502545489,1.58210258,158.03,157.93,20.0]
[1724502545782,1.58210258,158.03,157.91,40.75079789]
[1724502545783,1.58210258,158.03,157.91,47.36965656]
[1724502546657,15.0906,158.0,157.92,20.0]
[1724502546855,1.58264413,157.99,157.91,16.12660001]
[1724502547375,1.58264413,157.99,157.91,7.83805175]
[1724502548077,1.58269791,157.98,157.91,7.83805175]
[1724502548392,1.58269791,157.98,157.92,20.0]
[1724502549078,1.58276522,157.99,157.92,20.0]
[1724502549252,1.58276541,157.98,157.92,20.0]
[1724502550379,1.58276592,157.99,157.92,20.0]
[1724502551470,1.58276431,157.98,157.92,20.0]
[1724502552607,1.58277416,157.99,157.92,20.0]
[1724502552794,1.58277382,157.98,157.92,20.0]
[1724502553884,6.4408,157.98,157.92,20.0]
[1724502554196,8.02357327,157.98,157.92,20.0]
[1724502554886,6.4408,157.98,157.92,20.0]
[1724502555068,8.02357284,157.98,157.92,20.0]
[1724502559972,6.4408,157.98,157.93,9.55476354]
[1724502560360,6.4408,157.98,157.93,8.28854826]
[1724502561077,8.02357043,157.98,157.92,29.86480999]
[1724502562007,6.4408,157.98,157.92,29.86480999]
[1724502562293,8.02356978,157.98,157.92,29.86480999]
[1724502563261,6.4408,157.98,157.92,29.86480999]
[1724502563473,8.02356861,157.98,157.92,29.86480999]
[1724502564295,6.4408,157.98,157.93,9.55476244]
[1724502566478,6.4408,157.98,157.93,8.28854826]
[1724502568688,6.4408,157.98,157.94,1.26609995]
[1724502569302,6.4408,157.98,157.94,11.13090994]
[1724502569487,15.0906,158.0,157.95,1.26593678]
[1724502569687,15.0906,158.0,157.95,21.26593678]
[1724502570017,15.0906,158.0,157.95,20.0]
[1724502570179,15.0906,158.0,157.96,11.13066804]
[1724502570503,6.4854,158.02,157.96,11.13066804]
[1724502571586,6.4854,158.02,157.97,20.0]
[1724502571788,6.4854,158.02,157.98,1.26578164]
[1724502572611,16.5913,158.04,158.0,9.86480999]
[1724502572793,6.4854,158.07,158.01,21.26551282]
[1724502572991,6.4854,158.07,158.02,1.26550226]
[1724502573308,6.4854,158.07,158.01,20.0]
[1724502573629,6.4854,158.07,158.02,11.13028598]
[1724502573797,6.4854,158.07,158.03,1.26537639]
[1724502573983,16.5913,158.08,158.03,20.0]
[1724502574682,16.5913,158.08,158.02,20.0]